[Event "Late-Titled-Tuesday-Blitz-March-26-2024"]
[Site "Chess.com"]
[Date "2024.03.26"]
[Round "3"]
[White "whiteglovethief"]
[Black "AlexPapasimakopoulos"]
[Result "0-1"]
[WhiteElo "2490"]
[BlackElo "2739"]
[TimeControl "180+1"]
[EndTime "14:27:09 PDT"]
[Termination "AlexPapasimakopoulos won by resignation"]

1. d4 {[%clk 0:03:00.9]} 1... d5 {[%clk 0:02:59.4]} 2. c4 {[%clk 0:03:01.3]}
2... e6 {[%clk 0:02:59.4]} 3. Nf3 {[%clk 0:03:01.8]} 3... a6 {[%clk 0:02:59.3]}
4. g3 {[%clk 0:03:01.8]} 4... dxc4 {[%clk 0:02:59.5]} 5. Bg2 {[%clk 0:03:01.8]}
5... b5 {[%clk 0:03:00.2]} 6. O-O {[%clk 0:03:02]} 6... Bb7 {[%clk 0:03:00]} 7.
Qc2 {[%clk 0:03:02.4]} 7... Nf6 {[%clk 0:02:59.3]} 8. a4 {[%clk 0:02:59.8]} 8...
Nbd7 {[%clk 0:02:51.9]} 9. b3 {[%clk 0:02:58.6]} 9... cxb3 {[%clk 0:02:44.8]}
10. Qxb3 {[%clk 0:02:58.4]} 10... Bd5 {[%clk 0:02:41.7]} 11. Qc2 {[%clk
0:02:56.6]} 11... b4 {[%clk 0:02:41.3]} 12. Bg5 {[%clk 0:02:53.9]} 12... Be7
{[%clk 0:02:40.7]} 13. Nbd2 {[%clk 0:02:53.4]} 13... O-O {[%clk 0:02:23.5]} 14.
e4 {[%clk 0:02:52.3]} 14... Bb7 {[%clk 0:02:24.2]} 15. a5 {[%clk 0:02:51]} 15...
h6 {[%clk 0:02:21.1]} 16. Bf4 {[%clk 0:02:46.5]} 16... c5 {[%clk 0:02:21]} 17.
dxc5 {[%clk 0:02:38.6]} 17... Nxc5 {[%clk 0:02:21.9]} 18. e5 {[%clk 0:02:35]}
18... Nd5 {[%clk 0:02:19.4]} 19. Nc4 {[%clk 0:02:27.1]} 19... Nxf4 {[%clk
0:02:19]} 20. gxf4 {[%clk 0:02:26.8]} 20... Qd3 {[%clk 0:02:19.7]} 21. Qxd3
{[%clk 0:02:18.7]} 21... Nxd3 {[%clk 0:02:20.6]} 22. Rfd1 {[%clk 0:02:07.9]}
22... Nxf4 {[%clk 0:02:19.1]} 23. Rd7 {[%clk 0:02:08.4]} 23... Bxf3 {[%clk
0:02:15.7]} 24. Bxf3 {[%clk 0:02:09.3]} 24... Rac8 {[%clk 0:02:08.2]} 25. Nb6
{[%clk 0:02:07.1]} 25... Rc3 {[%clk 0:02:08.6]} 26. Bb7 {[%clk 0:02:03.2]} 26...
Bc5 {[%clk 0:02:05.1]} 27. Na4 {[%clk 0:02:01.6]} 27... Rc2 {[%clk 0:01:41.4]}
28. Nxc5 {[%clk 0:02:01.2]} 28... Rxc5 {[%clk 0:01:42.3]} 29. Bxa6 {[%clk
0:02:00.2]} 29... Ra8 {[%clk 0:01:41.1]} 30. Rd6 {[%clk 0:01:40.7]} 30... Rxe5
{[%clk 0:01:38.1]} 31. Ra4 {[%clk 0:01:33.6]} 31... b3 {[%clk 0:01:33.9]} 32.
Rb6 {[%clk 0:01:29.5]} 32... Rxa6 {[%clk 0:01:26.1]} 33. Rxf4 {[%clk 0:01:24.3]}
33... Rxb6 {[%clk 0:01:25.9]} 0-1

[Event "Late-Titled-Tuesday-Blitz-March-26-2024"]
[Site "Chess.com"]
[Date "2024.03.26"]
[Round "3"]
[White "NMJeevanK"]
[Black "Levanzovsky"]
[Result "1-0"]
[WhiteElo "2617"]
[BlackElo "2417"]
[TimeControl "180+1"]
[EndTime "14:27:12 PDT"]
[Termination "NMJeevanK won by resignation"]

1. e4 {[%clk 0:03:00.9]} 1... e5 {[%clk 0:02:53.1]} 2. Nf3 {[%clk 0:02:59.5]}
2... Nc6 {[%clk 0:02:53.6]} 3. d4 {[%clk 0:02:59]} 3... exd4 {[%clk 0:02:45.3]}
4. Bc4 {[%clk 0:02:58.3]} 4... Nf6 {[%clk 0:02:43.3]} 5. e5 {[%clk 0:02:55.1]}
5... d5 {[%clk 0:02:43]} 6. Bb5 {[%clk 0:02:55.4]} 6... Ne4 {[%clk 0:02:30.3]}
7. Nxd4 {[%clk 0:02:52]} 7... Bc5 {[%clk 0:02:20.5]} 8. Nxc6 {[%clk 0:02:18.7]}
8... Bxf2+ {[%clk 0:02:19.3]} 9. Kf1 {[%clk 0:02:16.8]} 9... bxc6 {[%clk
0:02:19.2]} 10. Bxc6+ {[%clk 0:02:17]} 10... Bd7 {[%clk 0:02:19.2]} 11. Qxd5
{[%clk 0:02:11.8]} 11... Bxc6 {[%clk 0:02:01.2]} 12. Qxc6+ {[%clk 0:02:06.2]}
12... Ke7 {[%clk 0:01:58.4]} 13. Qxe4 {[%clk 0:01:55.2]} 13... Qd1+ {[%clk
0:01:57.8]} 14. Kxf2 {[%clk 0:01:55.7]} 14... Qxh1 {[%clk 0:01:57.6]} 15. Bg5+
{[%clk 0:01:37.6]} 15... f6 {[%clk 0:01:57.2]} 16. exf6+ {[%clk 0:01:35.5]}
16... Kf7 {[%clk 0:01:51.3]} 17. Qe7+ {[%clk 0:01:30.9]} 17... Kg6 {[%clk
0:01:50.8]} 18. fxg7 {[%clk 0:01:28.4]} 18... Rhe8 {[%clk 0:01:07.7]} 19. Qf6+
{[%clk 0:01:24.1]} 19... Kh5 {[%clk 0:01:08]} 20. Bd2 {[%clk 0:01:20.5]} 1-0

[Event "Late-Titled-Tuesday-Blitz-March-26-2024"]
[Site "Chess.com"]
[Date "2024.03.26"]
[Round "3"]
[White "Firouzja2003"]
[Black "BardArtem"]
[Result "1-0"]
[WhiteElo "3094"]
[BlackElo "2819"]
[TimeControl "180+1"]
[EndTime "14:27:15 PDT"]
[Termination "Firouzja2003 won by resignation"]

1. e4 {[%clk 0:02:58.7]} 1... d5 {[%clk 0:02:56.9]} 2. exd5 {[%clk 0:02:58.8]}
2... Qxd5 {[%clk 0:02:57.8]} 3. Nc3 {[%clk 0:02:59]} 3... Qe5+ {[%clk
0:02:58.2]} 4. Be2 {[%clk 0:02:58.7]} 4... Bg4 {[%clk 0:02:58.4]} 5. d4 {[%clk
0:02:50.9]} 5... Bxe2 {[%clk 0:02:58.5]} 6. Ngxe2 {[%clk 0:02:51.1]} 6... Qa5
{[%clk 0:02:58.7]} 7. b4 {[%clk 0:02:48.6]} 7... Qxb4 {[%clk 0:02:58.7]} 8. Rb1
{[%clk 0:02:48.8]} 8... Qc4 {[%clk 0:02:59]} 9. Rxb7 {[%clk 0:02:48.1]} 9... e6
{[%clk 0:02:59.2]} 10. Bf4 {[%clk 0:02:41.5]} 10... Na6 {[%clk 0:02:58.7]} 11.
O-O {[%clk 0:02:33.7]} 11... Nf6 {[%clk 0:02:58.5]} 12. Be5 {[%clk 0:02:25.9]}
12... Bb4 {[%clk 0:02:54.7]} 13. Nb5 {[%clk 0:02:00.1]} 13... O-O-O {[%clk
0:02:48.4]} 14. Rxa7 {[%clk 0:01:32.4]} 14... Qxb5 {[%clk 0:02:48]} 15. Qd3
{[%clk 0:01:31.6]} 15... Qxd3 {[%clk 0:01:56]} 16. cxd3 {[%clk 0:01:32.5]} 16...
Nd7 {[%clk 0:01:46.3]} 17. Rxa6 {[%clk 0:01:32.2]} 17... Nxe5 {[%clk 0:01:45.1]}
18. dxe5 {[%clk 0:01:33.1]} 18... Bc5 {[%clk 0:01:41.1]} 19. d4 {[%clk
0:01:13.7]} 19... Bb6 {[%clk 0:01:39.9]} 20. Ra4 {[%clk 0:01:04.7]} 20... Kb7
{[%clk 0:01:39.4]} 21. Rc4 {[%clk 0:01:05.4]} 21... Rd5 {[%clk 0:01:35.4]} 22.
g3 {[%clk 0:01:03.3]} 22... Rhd8 {[%clk 0:01:34.7]} 23. Rb1 {[%clk 0:01:02.8]}
23... Kc8 {[%clk 0:01:26.2]} 24. Rxb6 {[%clk 0:01:01.6]} 1-0

[Event "Late-Titled-Tuesday-Blitz-March-26-2024"]
[Site "Chess.com"]
[Date "2024.03.26"]
[Round "3"]
[White "PawnEatingZombie"]
[Black "UK_23"]
[Result "1-0"]
[WhiteElo "2187"]
[BlackElo "2383"]
[TimeControl "180+1"]
[EndTime "14:27:17 PDT"]
[Termination "PawnEatingZombie won by checkmate"]

1. e4 {[%clk 0:02:57.4]} 1... c5 {[%clk 0:02:55.4]} 2. c3 {[%clk 0:02:56.4]}
2... Nf6 {[%clk 0:02:54.1]} 3. e5 {[%clk 0:02:55.7]} 3... Nd5 {[%clk 0:02:54.5]}
4. Nf3 {[%clk 0:02:56]} 4... d6 {[%clk 0:02:54.3]} 5. Bc4 {[%clk 0:02:51.1]}
5... e6 {[%clk 0:02:50.2]} 6. d4 {[%clk 0:02:49.6]} 6... cxd4 {[%clk 0:02:49.4]}
7. cxd4 {[%clk 0:02:50]} 7... Nc6 {[%clk 0:02:49.2]} 8. O-O {[%clk 0:02:44.7]}
8... Be7 {[%clk 0:02:44.7]} 9. Qe2 {[%clk 0:02:44.7]} 9... O-O {[%clk
0:02:41.9]} 10. Rd1 {[%clk 0:02:44.6]} 10... a6 {[%clk 0:02:37]} 11. Nc3 {[%clk
0:02:44.2]} 11... Nxc3 {[%clk 0:02:35.6]} 12. bxc3 {[%clk 0:02:45.1]} 12... dxe5
{[%clk 0:02:26.3]} 13. dxe5 {[%clk 0:02:42.7]} 13... Qa5 {[%clk 0:02:24]} 14.
Rb1 {[%clk 0:02:33.4]} 14... b5 {[%clk 0:02:08.4]} 15. Bd3 {[%clk 0:02:26.7]}
15... Bb7 {[%clk 0:02:08.7]} 16. Bg5 {[%clk 0:01:59.2]} 16... Bc5 {[%clk
0:01:59.3]} 17. Qe4 {[%clk 0:01:54.9]} 17... g6 {[%clk 0:01:58.3]} 18. Qh4
{[%clk 0:01:53.5]} 18... Rfc8 {[%clk 0:01:43]} 19. Bf6 {[%clk 0:01:51.4]} 19...
Bf8 {[%clk 0:01:37.6]} 20. Ng5 {[%clk 0:01:40.4]} 20... h6 {[%clk 0:01:32.4]}
21. Nxe6 {[%clk 0:00:57.4]} 21... fxe6 {[%clk 0:01:29.8]} 22. Qg4 {[%clk
0:00:55.6]} 22... g5 {[%clk 0:01:24.8]} 23. Qxe6# {[%clk 0:00:49.3]} 1-0

[Event "Late-Titled-Tuesday-Blitz-March-26-2024"]
[Site "Chess.com"]
[Date "2024.03.26"]
[Round "3"]
[White "1800_strength"]
[Black "DeArron_Fox"]
[Result "1-0"]
[WhiteElo "2797"]
[BlackElo "2506"]
[TimeControl "180+1"]
[EndTime "14:27:21 PDT"]
[Termination "1800_strength won by resignation"]

1. g4 {[%clk 0:03:00.9]} 1... d5 {[%clk 0:02:58.5]} 2. Bg2 {[%clk 0:03:00.4]}
2... c6 {[%clk 0:02:57.2]} 3. g5 {[%clk 0:03:00.6]} 3... e5 {[%clk 0:02:55.4]}
4. d4 {[%clk 0:03:00.8]} 4... e4 {[%clk 0:02:40.5]} 5. f3 {[%clk 0:03:00.9]}
5... exf3 {[%clk 0:02:15.1]} 6. Nxf3 {[%clk 0:03:01.8]} 6... Bd6 {[%clk
0:02:15.2]} 7. Nc3 {[%clk 0:03:01.7]} 7... Bg4 {[%clk 0:01:57.9]} 8. e4 {[%clk
0:03:01.2]} 8... dxe4 {[%clk 0:01:44.4]} 9. Nxe4 {[%clk 0:03:02.1]} 9... Ne7
{[%clk 0:01:43.9]} 10. O-O {[%clk 0:02:53.2]} 10... O-O {[%clk 0:01:42]} 11. Qe1
{[%clk 0:02:50.1]} 11... Ng6 {[%clk 0:01:30.1]} 12. c3 {[%clk 0:02:47.7]} 12...
Na6 {[%clk 0:01:17.2]} 13. h3 {[%clk 0:02:46.3]} 13... Bh5 {[%clk 0:01:01.4]}
14. Nh4 {[%clk 0:02:45.4]} 14... Nc7 {[%clk 0:00:50.7]} 15. Nf5 {[%clk
0:02:43.4]} 15... Ne8 {[%clk 0:00:33.3]} 16. Neg3 {[%clk 0:02:38.5]} 16... Nf4
{[%clk 0:00:09.7]} 17. Bxf4 {[%clk 0:02:29.8]} 17... Bxf4 {[%clk 0:00:09.8]} 18.
Nxh5 {[%clk 0:02:30.1]} 18... Bxg5 {[%clk 0:00:08.6]} 19. Qg3 {[%clk 0:02:28.9]}
19... g6 {[%clk 0:00:03.7]} 20. Nf4 {[%clk 0:02:29.3]} 20... gxf5 {[%clk
0:00:02.1]} 21. h4 {[%clk 0:02:29.8]} 21... h6 {[%clk 0:00:02.4]} 22. Nh3 {[%clk
0:02:28.8]} 22... f6 {[%clk 0:00:01.8]} 23. hxg5 {[%clk 0:02:29.3]} 23... fxg5
{[%clk 0:00:01.9]} 24. Rae1 {[%clk 0:02:27.6]} 24... Ng7 {[%clk 0:00:02.4]} 25.
Re5 {[%clk 0:02:27.1]} 25... Qf6 {[%clk 0:00:02.7]} 26. Rfe1 {[%clk 0:02:27.1]}
26... Qf7 {[%clk 0:00:02.4]} 27. d5 {[%clk 0:02:26.8]} 27... Rae8 {[%clk
0:00:02.3]} 28. dxc6 {[%clk 0:02:26.9]} 28... bxc6 {[%clk 0:00:02.8]} 29. Bxc6
{[%clk 0:02:27.4]} 29... Rxe5 {[%clk 0:00:03.4]} 30. Qxe5 {[%clk 0:02:28.2]}
30... Kh7 {[%clk 0:00:02.6]} 31. Qh2 {[%clk 0:02:27.4]} 31... f4 {[%clk
0:00:02.3]} 32. Nxg5+ {[%clk 0:02:28]} 1-0

[Event "Late-Titled-Tuesday-Blitz-March-26-2024"]
[Site "Chess.com"]
[Date "2024.03.26"]
[Round "3"]
[White "AryanTari"]
[Black "Agibileg"]
[Result "1-0"]
[WhiteElo "3001"]
[BlackElo "2764"]
[TimeControl "180+1"]
[EndTime "14:27:31 PDT"]
[Termination "AryanTari won by resignation"]

1. e4 {[%clk 0:02:54.9]} 1... e5 {[%clk 0:02:58.9]} 2. Nf3 {[%clk 0:02:53.6]}
2... Nc6 {[%clk 0:02:58.6]} 3. d4 {[%clk 0:02:51.3]} 3... exd4 {[%clk
0:02:57.5]} 4. Nxd4 {[%clk 0:02:52.2]} 4... Nf6 {[%clk 0:02:58]} 5. Nxc6 {[%clk
0:02:50.2]} 5... bxc6 {[%clk 0:02:58.9]} 6. Nd2 {[%clk 0:02:50.5]} 6... d5
{[%clk 0:02:42.2]} 7. exd5 {[%clk 0:02:43.1]} 7... cxd5 {[%clk 0:02:41.6]} 8.
Bb5+ {[%clk 0:02:43.5]} 8... Bd7 {[%clk 0:02:41.5]} 9. Bxd7+ {[%clk 0:02:44]}
9... Qxd7 {[%clk 0:02:41.3]} 10. O-O {[%clk 0:02:44.5]} 10... Be7 {[%clk
0:02:40.5]} 11. b3 {[%clk 0:02:43.4]} 11... O-O {[%clk 0:02:40.3]} 12. Bb2
{[%clk 0:02:43.5]} 12... a5 {[%clk 0:02:37.9]} 13. a4 {[%clk 0:02:43.2]} 13...
c5 {[%clk 0:02:33.6]} 14. Qf3 {[%clk 0:02:33.6]} 14... Rfe8 {[%clk 0:02:24.3]}
15. Rad1 {[%clk 0:02:32.7]} 15... Rad8 {[%clk 0:02:22.2]} 16. Nc4 {[%clk
0:02:27]} 16... d4 {[%clk 0:02:01.3]} 17. Nxa5 {[%clk 0:02:22.6]} 17... Nd5
{[%clk 0:01:45.3]} 18. Nc4 {[%clk 0:02:22.3]} 18... Bf6 {[%clk 0:01:40.4]} 19.
Ba3 {[%clk 0:02:15.4]} 19... Qc7 {[%clk 0:01:28.9]} 20. Rde1 {[%clk 0:02:11.9]}
20... Nc3 {[%clk 0:01:26.5]} 21. g3 {[%clk 0:02:09.7]} 21... h6 {[%clk
0:01:24.7]} 22. Kg2 {[%clk 0:02:09.4]} 22... Rf8 {[%clk 0:00:51]} 23. Bc1 {[%clk
0:02:05.8]} 23... Rd5 {[%clk 0:00:47.6]} 24. Bxh6 {[%clk 0:02:02.5]} 24... Qc6
{[%clk 0:00:32.7]} 25. Bd2 {[%clk 0:02:02]} 25... g5 {[%clk 0:00:29.5]} 26. Bxc3
{[%clk 0:01:58]} 26... dxc3 {[%clk 0:00:27.3]} 27. Ne3 {[%clk 0:01:54.8]} 1-0

[Event "Late-Titled-Tuesday-Blitz-March-26-2024"]
[Site "Chess.com"]
[Date "2024.03.26"]
[Round "3"]
[White "cthake"]
[Black "DraningWaterHi"]
[Result "0-1"]
[WhiteElo "1760"]
[BlackElo "2314"]
[TimeControl "180+1"]
[EndTime "14:27:32 PDT"]
[Termination "DraningWaterHi won by resignation"]

1. e4 {[%clk 0:03:00.9]} 1... c5 {[%clk 0:02:59.6]} 2. Nf3 {[%clk 0:03:00.2]}
2... Nf6 {[%clk 0:02:57.4]} 3. Nc3 {[%clk 0:02:57.4]} 3... Nc6 {[%clk
0:02:56.6]} 4. e5 {[%clk 0:02:49.8]} 4... Ng8 {[%clk 0:02:56.6]} 5. Bc4 {[%clk
0:02:46.9]} 5... e6 {[%clk 0:02:53.3]} 6. O-O {[%clk 0:02:45.4]} 6... d5 {[%clk
0:02:53.2]} 7. exd6 {[%clk 0:02:44.6]} 7... Bxd6 {[%clk 0:02:53.2]} 8. d3 {[%clk
0:02:41.5]} 8... Nf6 {[%clk 0:02:53.1]} 9. Bg5 {[%clk 0:02:40.1]} 9... h6 {[%clk
0:02:52.8]} 10. Bh4 {[%clk 0:02:39.7]} 10... O-O {[%clk 0:02:51.3]} 11. Re1
{[%clk 0:02:37.4]} 11... a6 {[%clk 0:02:51.1]} 12. a4 {[%clk 0:02:36.6]} 12...
Be7 {[%clk 0:02:51.2]} 13. h3 {[%clk 0:02:22.6]} 13... Nd4 {[%clk 0:02:49.2]}
14. Nxd4 {[%clk 0:02:20.3]} 14... Qxd4 {[%clk 0:02:50.1]} 15. Bxf6 {[%clk
0:02:16.8]} 15... Bxf6 {[%clk 0:02:49.9]} 16. Re4 {[%clk 0:02:13.9]} 16... Qd6
{[%clk 0:02:49.6]} 17. a5 {[%clk 0:02:01.2]} 17... Bd7 {[%clk 0:02:48.4]} 18.
Re1 {[%clk 0:01:56.2]} 18... Bc6 {[%clk 0:02:24.5]} 19. Rb1 {[%clk 0:01:48.7]}
19... Qc7 {[%clk 0:02:22.7]} 20. Ra1 {[%clk 0:01:43]} 20... Rad8 {[%clk
0:02:07.8]} 21. Qg4 {[%clk 0:01:27.1]} 21... Rd4 {[%clk 0:02:06.2]} 22. Ne4
{[%clk 0:01:19.6]} 22... Bxe4 {[%clk 0:02:05.1]} 23. Rxe4 {[%clk 0:01:19]} 23...
Rxe4 {[%clk 0:02:04.2]} 24. Qxe4 {[%clk 0:01:18.4]} 24... Bxb2 {[%clk
0:02:00.6]} 25. Rb1 {[%clk 0:01:18.6]} 25... Bf6 {[%clk 0:02:00.1]} 26. Rxb7
{[%clk 0:01:18.1]} 26... Qxa5 {[%clk 0:02:00.2]} 27. Kh2 {[%clk 0:01:07.6]}
27... Qc3 {[%clk 0:01:58]} 28. Qe2 {[%clk 0:01:06]} 28... a5 {[%clk 0:01:57.4]}
29. Rb5 {[%clk 0:01:04.3]} 29... a4 {[%clk 0:01:57.3]} 30. Rxc5 {[%clk
0:01:03.4]} 30... a3 {[%clk 0:01:57.7]} 31. Qd1 {[%clk 0:00:54]} 31... a2 {[%clk
0:01:56.1]} 32. Bxe6 {[%clk 0:00:38.7]} 32... Qxc5 {[%clk 0:01:54.2]} 33. Bxa2
{[%clk 0:00:38.6]} 33... Qxf2 {[%clk 0:01:51.8]} 0-1

[Event "Late-Titled-Tuesday-Blitz-March-26-2024"]
[Site "Chess.com"]
[Date "2024.03.26"]
[Round "3"]
[White "PepeCuenca"]
[Black "noblerone"]
[Result "1-0"]
[WhiteElo "2734"]
[BlackElo "2531"]
[TimeControl "180+1"]
[EndTime "14:27:33 PDT"]
[Termination "PepeCuenca won by resignation"]

1. d4 {[%clk 0:03:00.3]} 1... d5 {[%clk 0:02:59]} 2. Bf4 {[%clk 0:03:00.2]} 2...
Nf6 {[%clk 0:02:56]} 3. e3 {[%clk 0:03:00.4]} 3... e6 {[%clk 0:02:55.4]} 4. Nf3
{[%clk 0:03:00.3]} 4... Bd6 {[%clk 0:02:53.8]} 5. Ne5 {[%clk 0:03:00.4]} 5... c5
{[%clk 0:02:51.2]} 6. Bb5+ {[%clk 0:03:00.4]} 6... Kf8 {[%clk 0:02:44.9]} 7. O-O
{[%clk 0:02:58.2]} 7... Qc7 {[%clk 0:02:38.7]} 8. c4 {[%clk 0:02:46.6]} 8... a6
{[%clk 0:02:34.6]} 9. Ba4 {[%clk 0:02:33]} 9... dxc4 {[%clk 0:02:29.5]} 10. dxc5
{[%clk 0:02:19.6]} 10... Qxc5 {[%clk 0:00:42.5]} 11. Nd7+ {[%clk 0:02:13]} 11...
Nbxd7 {[%clk 0:00:39.6]} 12. Bxd6+ {[%clk 0:02:12.7]} 12... Qxd6 {[%clk
0:00:40.5]} 13. Qxd6+ {[%clk 0:02:12.1]} 13... Kg8 {[%clk 0:00:41.4]} 14. Bxd7
{[%clk 0:02:07.9]} 14... Bxd7 {[%clk 0:00:41]} 15. Nc3 {[%clk 0:02:05]} 15...
Bc6 {[%clk 0:00:40.9]} 16. Rfd1 {[%clk 0:02:03.6]} 16... h5 {[%clk 0:00:40.7]}
17. Qc5 {[%clk 0:01:57.7]} 17... Kh7 {[%clk 0:00:38.9]} 18. Qxc4 {[%clk
0:01:57.5]} 18... Rac8 {[%clk 0:00:36.5]} 19. Qf4 {[%clk 0:01:56.3]} 19... Rhe8
{[%clk 0:00:35]} 20. e4 {[%clk 0:01:55.6]} 20... e5 {[%clk 0:00:29.8]} 21. Qf5+
{[%clk 0:01:53.4]} 21... Kh6 {[%clk 0:00:30.7]} 22. h4 {[%clk 0:01:52.2]} 22...
Re6 {[%clk 0:00:28.1]} 23. f3 {[%clk 0:01:48.7]} 23... g6 {[%clk 0:00:25.4]} 24.
Qg5+ {[%clk 0:01:48.6]} 24... Kg7 {[%clk 0:00:26.3]} 25. Rac1 {[%clk 0:01:48.2]}
25... Nh7 {[%clk 0:00:21.5]} 26. Qe3 {[%clk 0:01:47.5]} 26... Nf6 {[%clk
0:00:21.4]} 27. Nd5 {[%clk 0:01:47.5]} 1-0

[Event "Late-Titled-Tuesday-Blitz-March-26-2024"]
[Site "Chess.com"]
[Date "2024.03.26"]
[Round "3"]
[White "Jimonios"]
[Black "semchik73"]
[Result "1-0"]
[WhiteElo "2612"]
[BlackElo "2415"]
[TimeControl "180+1"]
[EndTime "14:27:37 PDT"]
[Termination "Jimonios won by checkmate"]

1. Nc3 {[%clk 0:03:00.9]} 1... d5 {[%clk 0:02:56.9]} 2. d4 {[%clk 0:03:00.5]}
2... c5 {[%clk 0:02:56.4]} 3. Bf4 {[%clk 0:02:59.7]} 3... cxd4 {[%clk
0:02:53.2]} 4. Qxd4 {[%clk 0:03:00.6]} 4... Nf6 {[%clk 0:02:52.3]} 5. e4 {[%clk
0:03:00.3]} 5... Nc6 {[%clk 0:02:41.2]} 6. Bb5 {[%clk 0:02:56.9]} 6... Nxe4
{[%clk 0:02:33.9]} 7. Nxe4 {[%clk 0:02:52.5]} 7... dxe4 {[%clk 0:02:34.2]} 8.
Qa4 {[%clk 0:02:52.2]} 8... Qb6 {[%clk 0:02:26.3]} 9. Be3 {[%clk 0:02:45.2]}
9... Qc7 {[%clk 0:02:21.2]} 10. O-O-O {[%clk 0:02:45.1]} 10... Bd7 {[%clk
0:02:10.4]} 11. Ne2 {[%clk 0:02:39.7]} 11... e5 {[%clk 0:02:02]} 12. Nc3 {[%clk
0:02:36.4]} 12... O-O-O {[%clk 0:01:28.8]} 13. Bxa7 {[%clk 0:02:00.5]} 13...
Nxa7 {[%clk 0:01:10.1]} 14. Qxa7 {[%clk 0:02:00.9]} 14... Bc5 {[%clk 0:00:58.5]}
15. Qa8+ {[%clk 0:01:59.2]} 15... Qb8 {[%clk 0:00:58]} 16. Bxd7+ {[%clk
0:01:57.7]} 16... Rxd7 {[%clk 0:00:57.7]} 17. Qxb8+ {[%clk 0:01:57.8]} 17...
Kxb8 {[%clk 0:00:56.8]} 18. Rxd7 {[%clk 0:01:58.7]} 18... Bxf2 {[%clk
0:00:56.3]} 19. Nxe4 {[%clk 0:01:58.4]} 19... Be3+ {[%clk 0:00:56.4]} 20. Kb1
{[%clk 0:01:58.4]} 20... f5 {[%clk 0:00:57.1]} 21. Nd6 {[%clk 0:01:58]} 21... g5
{[%clk 0:00:54.6]} 22. Rd1 {[%clk 0:01:58]} 22... f4 {[%clk 0:00:50.3]} 23. Rd5
{[%clk 0:01:56.4]} 23... b6 {[%clk 0:00:42.5]} 24. Rd3 {[%clk 0:01:55.5]} 24...
Bc5 {[%clk 0:00:41.9]} 25. b4 {[%clk 0:01:40.8]} 25... Bxb4 {[%clk 0:00:39.7]}
26. Rb7+ {[%clk 0:01:39.6]} 26... Ka8 {[%clk 0:00:40.1]} 27. Rxb6 {[%clk
0:01:40.5]} 27... Bc5 {[%clk 0:00:38]} 28. Ra6+ {[%clk 0:01:36.5]} 28... Kb8
{[%clk 0:00:38.3]} 29. Rb3+ {[%clk 0:01:37.1]} 29... Kc7 {[%clk 0:00:38.7]} 30.
Rb7+ {[%clk 0:01:37.7]} 30... Kd8 {[%clk 0:00:37.5]} 31. Ra8# {[%clk 0:01:38.6]}
1-0

[Event "Late-Titled-Tuesday-Blitz-March-26-2024"]
[Site "Chess.com"]
[Date "2024.03.26"]
[Round "3"]
[White "Brahianzevich"]
[Black "teresin05"]
[Result "1-0"]
[WhiteElo "2479"]
[BlackElo "2243"]
[TimeControl "180+1"]
[EndTime "14:27:37 PDT"]
[Termination "Brahianzevich won by resignation"]

1. e4 {[%clk 0:03:00.9]} 1... c5 {[%clk 0:02:58.7]} 2. Nc3 {[%clk 0:03:00.6]}
2... Nc6 {[%clk 0:02:59.1]} 3. Nf3 {[%clk 0:03:00.2]} 3... d6 {[%clk 0:02:59]}
4. d4 {[%clk 0:02:59.8]} 4... cxd4 {[%clk 0:02:59.9]} 5. Nxd4 {[%clk 0:03:00.3]}
5... Nf6 {[%clk 0:03:00.5]} 6. g3 {[%clk 0:02:59.8]} 6... e6 {[%clk 0:03:00.1]}
7. Bg2 {[%clk 0:02:59]} 7... Be7 {[%clk 0:03:00.7]} 8. O-O {[%clk 0:02:57.3]}
8... O-O {[%clk 0:03:01.4]} 9. Nde2 {[%clk 0:02:50.9]} 9... e5 {[%clk
0:03:01.2]} 10. h3 {[%clk 0:02:48.5]} 10... Be6 {[%clk 0:03:00.6]} 11. a4 {[%clk
0:02:48.5]} 11... Qd7 {[%clk 0:03:00.5]} 12. Kh2 {[%clk 0:02:47.3]} 12... h6
{[%clk 0:02:59.7]} 13. b3 {[%clk 0:02:44.9]} 13... Nh7 {[%clk 0:02:58.7]} 14.
Nd5 {[%clk 0:02:44.8]} 14... f5 {[%clk 0:02:57.2]} 15. exf5 {[%clk 0:02:38.2]}
15... Bxf5 {[%clk 0:02:57]} 16. a5 {[%clk 0:02:39.1]} 16... Rac8 {[%clk
0:02:49.3]} 17. a6 {[%clk 0:02:36.6]} 17... b6 {[%clk 0:02:48.6]} 18. c4 {[%clk
0:02:36.2]} 18... Ng5 {[%clk 0:02:44.3]} 19. Bxg5 {[%clk 0:02:35.9]} 19... Bxg5
{[%clk 0:02:45.2]} 20. Ra2 {[%clk 0:02:33.2]} 20... Rf7 {[%clk 0:02:26.8]} 21.
f4 {[%clk 0:02:31.1]} 21... exf4 {[%clk 0:02:25.6]} 22. Nexf4 {[%clk 0:02:30.5]}
22... Rcf8 {[%clk 0:02:18.1]} 23. Rd2 {[%clk 0:02:27]} 23... Be6 {[%clk
0:02:14.8]} 24. Re1 {[%clk 0:02:21.9]} 24... Bf5 {[%clk 0:02:07]} 25. Ne3 {[%clk
0:02:16.5]} 25... Bxf4 {[%clk 0:02:05.8]} 26. gxf4 {[%clk 0:02:15.2]} 26... Rf6
{[%clk 0:02:04.4]} 27. Nxf5 {[%clk 0:02:12.4]} 27... Qxf5 {[%clk 0:01:52.8]} 28.
Bxc6 {[%clk 0:02:08.7]} 28... Qxf4+ {[%clk 0:01:53.2]} 29. Kh1 {[%clk
0:02:07.5]} 29... Qg3 {[%clk 0:01:44.1]} 30. Bg2 {[%clk 0:02:07.4]} 30... Kh8
{[%clk 0:01:37.9]} 31. Rde2 {[%clk 0:02:03.6]} 31... Rg6 {[%clk 0:01:27.1]} 32.
Rf1 {[%clk 0:01:58.7]} 32... Rxf1+ {[%clk 0:01:16.8]} 33. Qxf1 {[%clk
0:01:59.6]} 33... Qxb3 {[%clk 0:01:16.8]} 34. Re8+ {[%clk 0:01:51.8]} 34... Kh7
{[%clk 0:01:16.2]} 35. Be4 {[%clk 0:01:49.5]} 35... Qg3 {[%clk 0:01:10.1]} 36.
Bxg6+ {[%clk 0:01:48.1]} 36... Qxg6 {[%clk 0:01:11]} 37. Qe2 {[%clk 0:01:47.7]}
37... Qb1+ {[%clk 0:01:06.8]} 38. Kg2 {[%clk 0:01:45.9]} 38... Qg6+ {[%clk
0:01:06.2]} 39. Kh2 {[%clk 0:01:46]} 39... d5 {[%clk 0:01:04.3]} 40. cxd5 {[%clk
0:01:45.7]} 40... Qd6+ {[%clk 0:01:05]} 41. Qe5 {[%clk 0:01:45.5]} 41... Qc5
{[%clk 0:00:57.6]} 42. Qe4+ {[%clk 0:01:44.7]} 42... g6 {[%clk 0:00:57.8]} 43.
Qe7+ {[%clk 0:01:44.4]} 1-0